Cogmind - Beta 16 @@@ ROGUE MODE // 2026.01.09 @ 17:23:30 Player: beans Result: Destroyed by D-53 Grenadier with Mini Grenade Launcher Performance ------------- Evolutions (1) 500 Regions Visited (3) 600 Robots Destroyed (41) 205 Value Destroyed (1058) 1058 Prototype IDs (1) 20 Alien Tech Used (0) 0 Bonus (0) 0 TOTAL SCORE: 2383 Bonus ------- None Cogmind --------- Core Integrity 0/400 Matter 260/300 Energy 6/100 System Corruption 0% Temperature Cool (72) Movement Core (300) Ox5 Location -9/Mines Parts ------- > --- POWER (1) -------- (None) > --- PROPULSION (2) --- (None) > --- UTILITY (4) ------ Cryofiber Web Small Storage Unit > --- WEAPON (2) ------- Heavy Particle Cannon Flak Cannon > --- INVENTORY (8) ---- Heavy Particle Cannon Heavy Ion Cannon Flak Cannon Flak Cannon Rocket Launcher Axe Peak State ------------ > --- POWER ------------ Reinforced Ion Engine > --- PROPULSION ------- Improved Aluminum Leg Improved Aluminum Leg > --- UTILITY ---------- Cryofiber Web Small Storage Unit Hardened Light Armor Plating Tractor Beam > --- WEAPON ----------- Advanced Beam Cannon Advanced Beam Cannon > --- INVENTORY -------- Ion Engine Advanced Beam Cannon Flak Cannon Flak Cannon Flak Cannon Flak Cannon Rocket Launcher Axe [Rating: 21] Favorites ----------- Power Reinforced Ion Engine Engine Reinforced Ion Engine Power Core Light Nuclear Core Propulsion Improved Aluminum Leg Treads Light Treads Leg Improved Aluminum Leg Utility Small Storage Unit Device Cryofiber Web Storage Small Storage Unit Protection Reactive Plating Weapon Heavy Particle Cannon Energy Gun Particle Gun Energy Cannon Heavy Particle Cannon Ballistic Gun Light Assault Rifle Ballistic Cannon Flak Cannon Build | -11 -10 -9 -9 ------- Run | Yrd Mat Mat Min Slots Evolved 2 | . . 2 . Power . | . . . . Propulsion . | . . . . Utility 2 | . . 2 . Weapon . | . . . . Parts Attached 28 | 5 3 18 2 Power 4 | . 1 3 . Engine 3 | . 1 2 . Core 1 | . . 1 . Reactor . | . . . . Propulsion 5 | 2 . 3 . Treads 2 | 2 . . . Leg 3 | . . 3 . Wheel . | . . . . Hover . | . . . . Flight . | . . . . Utility 6 | 1 1 4 . Device 3 | . 1 2 . Storage 1 | 1 . . . Processor . | . . . . Hackware . | . . . . Protection 2 | . . 2 . Artifact . | . . . . Weapon 13 | 2 1 8 2 Energy Gun 2 | . 1 1 . Energy Cannon 4 | . . 4 . Ballistic Gun 3 | 2 . 1 . Ballistic Cannon 4 | . . 2 2 Launcher . | . . . . Special Weapon . | . . . . Impact Weapon . | . . . . Slashing Weapon . | . . . . Piercing Weapon . | . . . . Special Melee Weapon . | . . . . Unidentified Prototypes 1 | . . 1 . Parts Lost 15 | . . 10 5 Power 2 | . . 1 1 Propulsion 3 | . . 2 1 Utility 4 | . . 3 1 Weapon 6 | . . 4 2 Highest Loss Streak 5 | . . 4 5 To Critical Strikes . | . . . . Average Backups 5 | . 1 6 7 Power . | . . 1 . Propulsion . | . . . . Utility . | . . 1 . Weapon 3 | . . 3 7 Tool/Special . | . . . . Unused Backups 7 | . . 3 4 Power . | . . . . Propulsion . | . . . . Utility 1 | . . 1 . Weapon 6 | . . 2 4 Tool/Special . | . . . . Average Slot Usage (%) 76 | . 84 74 73 Engine 8 | . 4 9 10 Treads 7 | . 28 2 . Leg 12 | . . 16 9 Device 9 | . 8 9 11 Storage 11 | . 14 11 11 Protection 4 | . . 4 10 Energy Gun 3 | . 10 2 . Energy Cannon 7 | . . 8 21 Ballistic Gun 7 | . 17 5 . Ballistic Cannon 2 | . . 3 . Peak Build Rating 21 | 5 10 21 19 Average Rating 13 | 3 7 14 18 On Entrance 8 | . 5 10 19 Avg Prop Armor Cover (%) . | . . . . Naked Turns . | . . . . Heaviest Build 38 | 8 14 38 38 Greatest Support 40 | 40 40 40 13 Greatest Overweight (x) 2 | . . 2 2 Average Overweight (x) . | . . . 2 Largest Inventory Capacity 8 | 8 8 8 8 Average Capacity 7 | 7 8 8 8 Most Carried 8 | 5 3 8 8 Average Carried 5 | . 1 6 7 Final Capacity 8 | 8 8 8 8 Final Carried 8 | . 2 8 6 Class Distribution -------------------- 100% | Mutant Dominant Class ---------------- Mutant | -10/Materials Mutant | -9/Materials Mutant | -9/Mines Resources | -11 -10 -9 -9 ----------- Run | Yrd Mat Mat Min Matter Collected 820 | 220 183 417 . Remotely 82 | . . 82 . Salvage Created 1495 | . 387 961 147 Parts 89 | . 17 61 11 Haulers Intercepted 2 | . . 2 . Recyclers Shooed 5 | . 3 2 . Parts Field Recycled . | . . . . Retrieved Matter . | . . . . Parts Self-Destructed . | . . . . Prevented . | . . . . Parts Restored . | . . . . Kills | -11 -10 -9 -9 ------- Run | Yrd Mat Mat Min Combat Hostiles Destroyed 30 | . 5 19 6 Guns 16 | . 5 11 . Cannons 12 | . . 6 6 AOE 2 | . . 2 . Classes Destroyed 10 | . 3 6 1 Worker 2 | . 1 1 . Tunneler 1 | . . 1 . Hauler 2 | . . 2 . Recycler 3 | . 2 1 . Watcher 3 | . . 3 . Swarmer 7 | . . 3 4 Grunt 17 | . 5 11 1 Brawler 1 | . . 1 . Sentry 4 | . . 4 . Demolisher 1 | . . . 1 Best Kill Streak 5 | . 3 5 4 Combat Bots Only 5 | . 3 5 4 Max Kills in Single Turn 2 | . 1 2 1 Gunslinging . | . . . . Exploded 2 | . . 2 . Melee . | . . . . Uniques/NPCs Destroyed . | . . . . Combat | -11 -10 -9 -9 -------- Run | Yrd Mat Mat Min Hostile Shots Fired 197 | . 39 122 36 Missed 42 | . 12 28 2 Hits 155 | . 27 94 34 Melee 3 | . . 3 . Projectile 152 | . 27 91 34 AOE 19 | . . . 19 Critical Strikes 4 | . . 4 . Damage Taken 2437 | . 355 1230 852 Core 493 | . 81 231 181 Absorbed by Shields . | . . . . Ignored by Resistances 39 | . . 3 36 Regen/Repaired (Parts) 80 | . . 80 . Core Remaining (%) 83 | 100 67 . . Volleys Fired 157 | . 36 105 16 Largest 2 | . 2 2 2 Hottest 150 | . 85 150 150 Shots Fired 286 | . 72 190 24 Gun 184 | . 72 112 . Cannon 102 | . . 78 24 Launcher . | . . . . Special . | . . . . Kinetic 159 | . 51 103 5 Thermal 112 | . 21 72 19 Explosive . | . . . . Electromagnetic 15 | . . 15 . Robot Hit Streak 10 | . 5 10 6 Robot Miss Streak 6 | . 4 6 5 Penetration Max . | . . . . Secondary Targets 2 | . 2 . . Max Gunslinging Chain 1 | . 1 . . Shots Hit Robots 175 | . 42 120 13 Core Hits 86 | . 15 57 14 Critical Kills . | . . . . Critical Parts Destroyed . | . . . . Critical Strikes 1 | . 1 . . Burn 1 | . 1 . . Melee Attacks . | . . . . Impact . | . . . . Slashing . | . . . . Piercing . | . . . . Sneak Attacks . | . . . . Combat Hostiles . | . . . . Follow-up Attacks . | . . . . Damage Inflicted 2513 | . 510 1656 347 Guns 1332 | . 510 822 . Cannons 1092 | . . 745 347 Explosions 89 | . . 89 . Melee . | . . . . Ramming . | . . . . Kinetic 1133 | . 309 727 97 Thermal 1234 | . 201 783 250 Explosive . | . . . . Electromagnetic 146 | . . 146 . Impact . | . . . . Slashing . | . . . . Piercing . | . . . . Highest Corruption . | . . . . Average Corruption . | . . . . Corruption Purged . | . . . . Corruption Blocked . | . . . . Overload Shots . | . . . . Overflow Damage 8 | . . 3 5 Projectiles 8 | . . 3 5 Explosions . | . . . . Melee . | . . . . Knockbacks 11 | . . 8 3 Impact . | . . . . Kinetic 10 | . . 8 2 Secondary 1 | . . . 1 Self-Inflicted Damage 10 | . . 10 . Shots 1 | . . 1 . Rammed . | . . . . Targets Rammed . | . . . . Kicked . | . . . . Crushed . | . . . . Highest Temperature 398 | . 36 398 358 Average Temperature 114 | . 11 117 159 Received Heat Transfer 759 | . 174 585 . Effects 5 | . . 2 3 Energy Bleed 2 | . . 1 1 Interference 3 | . . 1 2 Siege Activations . | . . . . Martial Activations . | . . . . Shielding Activations . | . . . . Robots Disrupted . | . . . . Combat Hostiles . | . . . . Robots Corrupted . | . . . . Combat Hostiles . | . . . . Parts Fried 2 | . . 2 . Impact Corruptions . | . . . . Robots Melted . | . . . . Combat Hostiles . | . . . . Parts Melted 1 | . . 1 . Heat Transferred 2320 | . 555 1395 370 Parts Sabotaged . | . . . . Parts Stolen . | . . . . Parts Stripped . | . . . . Power Chain Reactions 1 | . . 1 . Alert | -11 -10 -9 -9 ------- Run | Yrd Mat Mat Min Maximum Alert Level . | . . . . Low Security (%) 100 | 100 100 100 100 Level 1 . | . . . . Level 2 . | . . . . Level 3 . | . . . . Level 4 . | . . . . Level 5 . | . . . . High Security . | . . . . Max Security . | . . . . Peak Influence 136 | . 60 136 108 Initial 20 | . . 20 15 Average 47 | . 12 56 76 Influence Increases 840 | . 135 558 147 Destroy 0b10 Robot/C 600 | . 100 380 120 Destroy 0b10 Robot/NC 55 | . 15 40 . Destroy Leader 150 | . 20 110 20 Disable Machine 15 | . . 15 . Destroy Structure 20 | . . 13 7 Influence Decreases 788 | . 85 568 135 Entered New Map 55 | . . 30 25 Time Decay 593 | . 85 448 60 Lost Part 140 | . . 90 50 Squads Dispatched 3 | . 1 1 1 Investigation 2 | . 1 . 1 Extermination . | . . . . Reinforcement 1 | . . 1 . Assault . | . . . . Garrison . | . . . . Intercept . | . . . . Searches Triggered . | . . . . Construction Impeded . | . . . . Haulers Reinforced . | . . . . Active Scanning Responses . | . . . . Cargo Convoy Interrupts . | . . . . Stealth | -11 -10 -9 -9 --------- Run | Yrd Mat Mat Min Distress Signals 4 | . . 4 . Communications Jammed . | . . . . Distress Signals . | . . . . Times Spotted 49 | . 5 37 7 Peak Tracking Total 6 | . 2 6 4 Tactical Retreats . | . . . . Traps | -11 -10 -9 -9 ------- Run | Yrd Mat Mat Min Traps Triggered 2 | . 2 . . Indirectly . | . . . . Trap Hack Attempts . | . . . . Triggered . | . . . . Disarmed . | . . . . Reprogrammed . | . . . . Reused . | . . . . Traps Extracted . | . . . . Installed . | . . . . Triggered . | . . . . Machines | -11 -10 -9 -9 ---------- Run | Yrd Mat Mat Min Machines Disabled 1 | . . 1 . Max in Single Turn 1 | . . 1 . Machines Repaired . | . . . . Machines Dismantled . | . . . . Machines Sabotaged . | . . . . Overloaded Fab Kills . | . . . . Hacking | -11 -10 -9 -9 --------- Run | Yrd Mat Mat Min Machines Accessed 3 | . . 2 1 Terminals . | . . . . Fabricators . | . . . . Repair Stations 1 | . . 1 . Recycling Units . | . . . . Scanalyzers 1 | . . 1 . Garrison Access . | . . . . Total Hacks 10 | . . 9 1 Successful 9 | . . 8 1 Failed 1 | . . 1 . Catastrophic . | . . . . Database Lockouts . | . . . . Manual . | . . . . Terminals . | . . . . Fabricators . | . . . . Repair Stations 2 | . . 2 . Recycling Units . | . . . . Scanalyzers 7 | . . 7 . Garrison Access . | . . . . Terminal Hacks 1 | . . . 1 Open Door 1 | . . . 1 Fabricator Hacks . | . . . . Repair Station Hacks 2 | . . 2 . Scan Component 1 | . . 1 . Repair 1 | . . 1 . Recycling Unit Hacks . | . . . . Scanalyzer 6 | . . 6 . Retrieve Study 6 | . . 6 . Garrison Access Hacks . | . . . . Unauthorized Hacks . | . . . . Terminals . | . . . . Fabricators . | . . . . Repair Stations . | . . . . Recycling Units . | . . . . Scanalyzers . | . . . . Garrison Access . | . . . . Data Cores Recovered . | . . . . Used . | . . . . Hacking Detections 1 | . . 1 . Full Trace Events . | . . . . Feedback Events . | . . . . Feedback Blocked . | . . . . Robot Schematics Acquired . | . . . . Robots Built . | . . . . Authchips . | . . . . Time . | . . . . Total Robot Build Rating . | . . . . Part Schematics Acquired . | . . . . Parts Built . | . . . . Authchips . | . . . . Time . | . . . . Total Part Build Rating . | . . . . Part Studies Acquired 6 | . . 6 . Parts Repaired 1 | . . 1 . Time 32 | . . 32 . Parts Recycled . | . . . . Recycled Matter . | . . . . Retrieved Matter . | . . . . Retrieved Components . | . . . . Parts Scanalyzed . | . . . . Part Schematics Acquired . | . . . . Parts Damaged . | . . . . Bothacking | -11 -10 -9 -9 ------------ Run | Yrd Mat Mat Min Used RIF Installer . | . . . . Robots Hacked . | . . . . Non-combat . | . . . . Combat . | . . . . Robot Hacks Applied . | . . . . Relay Couplers Released . | . . . . Fabnet Peak Effective % . | . . . . Robots Rewired . | . . . . Allies Hacked . | . . . . Hacks Repelled . | . . . . Allies | -11 -10 -9 -9 -------- Run | Yrd Mat Mat Min Total Allies . | . . . . Largest Group . | . . . . Highest-Rated Group . | . . . . Highest-Rated Ally . | . . . . Total Orders . | . . . . Ally Attacks . | . . . . Total Damage . | . . . . Kills . | . . . . Allies Corrupted . | . . . . Allies Melted . | . . . . Intel | -11 -10 -9 -9 ------- Run | Yrd Mat Mat Min Active Infowar (turns) . | . . . . Robot Analysis Total . | . . . . Derelict Logs Recovered . | . . . . Drone Launches . | . . . . Drone Recoveries . | . . . . Exploration | -11 -10 -9 -9 ------------- Run | Yrd Mat Mat Min Turns Passed 1768 | 57 351 1234 126 Spaces Moved 738 | 44 150 511 33 Core 20 | 20 . . . Treads 242 | 24 150 68 . Legs 476 | . . 443 33 Wheels . | . . . . Hover . | . . . . Flight . | . . . . Fastest Speed 50 | 50 160 105 245 Average Speed 160 | 110 160 159 245 Slowest Speed 245 | 160 160 245 245 Overloaded Moves . | . . . . Propulsion Burnouts . | . . . . Robots Hopped . | . . . . Potential Cave-ins . | . . . . Cave-ins Triggered . | . . . . Exploration Rate (%) 24 | 3 30 49 14 Regions Visited 3 Branch Regions 1 Pre-discovered Areas . | . . . . Known Exits Taken . | . . . . Unknown Exits Taken 3 | 1 1 1 . Scrap Searched . | . . . . Spaces Dug 1 | . . 1 . Terrain Destroyed 19 | . . 12 7 Melee . | . . . . Projectile 18 | . . 11 7 AOE 1 | . . 1 . Terrain Rammed . | . . . . Walls Destroyed . | . . . . Machines Disabled . | . . . . Actions | -11 -10 -9 -9 --------- Run | Yrd Mat Mat Min Total 1057 | 53 192 756 56 Wait 88 | . . 85 3 Move 735 | 43 149 510 33 Hop . | . . . . Pick Up 35 | 5 4 25 1 Fast Attach 1 | . . 1 . Attach 20 | 5 2 11 2 Detach . | . . . . Swap 9 | . 1 8 . Drop 12 | . . 11 1 Fire 157 | . 36 105 16 Melee . | . . . . Ram . | . . . . Kick . | . . . . Crush . | . . . . Escape Stasis . | . . . . Rewire . | . . . . Trap . | . . . . Miscellaneous . | . . . . Route ------- -11/Scrapyard -10/Materials -9/Materials (discovered 2 exits: *Min x2) -9/Mines (discovered 1 exit: [*Mat]) History --------- Turn | Location | Event 6 | -11/Scrapyard | Discovered new exit (range 16) 58 | -11/Scrapyard | Entered Materials 269 | -10/Materials | Discovered new exit (range 8) 303 | -10/Materials | Build established: Mutant 409 | -10/Materials | Entered another Materials area 409 | -9/Materials | Evolved 2 slots: Utility x2 578 | -9/Materials | Lost 4 parts (1n1u2w) 849 | -9/Materials | Repaired Imp. Aluminum Leg+ 909 | -9/Materials | Core integrity fell below 50% 1197 | -9/Materials | Discovered new exit (range 6) 1602 | -9/Materials | Discovered new exit (range 7) 1643 | -9/Materials | Entered Mines 1695 | -9/Mines | Discovered new exit (range 10) 1707 | -9/Mines | Met a Derelict bent on vengeance 1741 | -9/Mines | Met a Derelict shopkeep closing up shop 1746 | -9/Mines | Assembled infested the area 1750 | -9/Mines | Core integrity fell below 20% 1769 | -9/Mines | Destroyed by D-53 Grenadier with Mini Grenade Launcher Last Messages --------------- ALERT: Infestation in the mines, dispatching Demolisher response squad. Machine disabled. SHOP.Sys disabled. Dropped Hvy. Particle Cannon. Acquired Hvy. Ion Cannon. 37-GR0(g) destroyed. Imp. Aluminum Leg+ destroyed. G-34 Mercenary destroyed. Rnf. Ion Engine+ destroyed. The unstable cave ceiling collapses. Hvy. Particle Cannon destroyed. Reactive Plating destroyed. D-53 Grenadier knocked back. The unstable cave ceiling collapses. D-53 Grenadier destroyed. The unstable cave ceiling collapses. Flak Cannon destroyed. D-53 Grenadier knocked back. The unstable cave ceiling collapses. Map ----- +----------------------------------------------------+ | ???????????????????????????????# ????????????????? | | ???????????????????????????????# #???????????????? | | ???????????????????????????????# #???????????????? | | ???????????????????????????????# ???????????????? | | ???????????????????????????????# #???????????????? | | ???????????????????????????##### ####????????????? | | ???????????????????????????# ##???????????? | | ???????????????????????????# = "#???????????? | | ???????????????????????????# *%[#????????????? | | ???????????????????????????# %==#????????????? | | ???????????????????????????# ##???????????? | | ???????????????????????????# % "#???????????? | | ???????????????????????????# [%*=##???????????? | | ???????????????????????????##########????????????? | | ?????????????????????????#######"###?????????????? | | ????????????????????????## #?????????????? | | ????????????????? #?????????????? | | ????????????????? ####" #?????????????? | | ?????????????????? ????## ##????????????? | | ??????????????????#### ??????## ;#????????????? | | ?????????????????????########?## ##???????????? | | ?????????????????????## ### * #???????????? | | ????????????????????## # %<%#???????????? | | ????????????????????# # d! ;#???????????? | | ????????????????????# % ###????????????? | | ????????????????????# @ ##??????????????? | | ????????????????????# #???????????????? | | ????????????????????# ##???????????????? | | ????????????????????## ##????????????????? | | ?????????????????????#" #????????????????? | | ?????????????????????### ???????????????? | | ???????????????????????## $ $?????????????? | | ???????????????????????# ####????????????? | | ???????????????????????# #???????????????? | | ???????????????????????# ## ##???????????????? | | ???????????????????????## ######????????????????? | | ????????????????????????####?????????????????????? | | ?????????????????????????????????????????????????? | | ?????????????????????????????????????????????????? | | ?????????????????????????????????????????????????? | | ?????????????????????????????????????????????????? | | | | | | | | | | | | | | | | | | | +----------------------------------------------------+ Best States ------------- Heat Dissipation 42 Energy Generation 14 Energy Capacity 265 Matter Stores 300 Matter Capacity 300 Sight Range 16 Terrain Scan Density 10 Base Temperature (-) 100 Armor Coverage 150 Resistance: KI 20 Evasion (%) 55 Recoil Reduction 2 Item Schematics ----------------- None Robot Schematics ------------------ None Fabricated ------------ Nothing Repaired ---------- Imp. Aluminum Leg | 20% | -9/Materials Studied --------- Lgt. Assault Rifle | -9/Materials | Hacked Rnf. Ion Engine | -9/Materials | Hacked Aluminum Leg | -9/Materials | Hacked Imp. Aluminum Leg | -9/Materials | Hacked Ion Engine | -9/Materials | Hacked Lgt. Ion Engine | -9/Materials | Hacked Alien Tech Used ----------------- None Achievements -------------- None Challenges ------------ None Game ------ Seed ChromaticRapidAirjet Manual? 0 Play Time 00:13:41 Cumulative 227.0 hours Start 2026.01.08 @ 17:30:14 End 2026.01.09 @ 17:23:30 Sessions 1 Manual Loads 0 Difficulty Rogue Special Mode None Game No. 635 Rogue 634 Adventurer 1 Explorer 0 Win Type - Total 0 Types 0/0/0/0/0/0/0/0/0/0 Lore% 65 Gallery% 63 Achievement% 39 Wizard Run 0 Options --------- Layout 1 ASCII 0 Keyboard 0 Movement Mouse Keybinds 0 Fullscreen 1 Font 24/Smallcaps Map View 50x35 Zoom Use 0% Tactical HUD 0 Map Filters NONE Filters NONE Steam 1 RUN: 8054b34b-16d4-4a89-8c2c-7d59d30fbff2